fUSD/lending_fUSD_20250507
["ID","MTS","AMOUNT","RATE_DAILY","PERIOD"]
[360174041,1746592245011,-450.0,0.00019647,2]
[360174042,1746592245022,-450.0,0.00019647,2]
[360174043,1746592245031,-450.0,0.00019647,2]
[360174044,1746592245040,-547.43514998,0.00019647,2]
[360174045,1746592245049,-1341.44,0.00019647,2]
[360174046,1746592245059,-500.0,0.00019647,2]
[360174047,1746592245069,-450.0,0.00019647,2]
[360174048,1746592245078,-1112.43,0.00019647,2]
[360174049,1746592245088,-739.75,0.00019647,2]
[360174050,1746592245098,-450.0,0.00019647,2]
[360174051,1746592245107,-450.0,0.00019647,2]
[360174052,1746592245116,-450.0,0.00019647,2]
[360174053,1746592245126,-949.12,0.00019647,2]
[360174054,1746592245135,-450.0,0.00019647,2]
[360174055,1746592245144,-450.0,0.00019647,2]
[360174056,1746592245153,-1040.56,0.00019647,2]
[360174057,1746592245162,-450.0,0.00019647,2]
[360174058,1746592245172,-450.0,0.00019647,2]
[360174059,1746592245181,-490.25,0.00019647,2]
[360174060,1746592245191,-151.0,0.00019647,2]
[360174061,1746592245200,-1585.61,0.00019647,2]
[360174062,1746592245210,-450.0,0.00019647,2]
[360174063,1746592245219,-450.0,0.00019647,2]
[360174064,1746592245228,-450.0,0.00019647,2]
[360174065,1746592245237,-450.0,0.00019647,2]
[360174066,1746592245247,-508.77,0.00019647,2]
[360174067,1746592245256,-450.0,0.00019647,2]
[360174068,1746592245266,-518.66,0.00019647,2]
[360174069,1746592245275,-429.941528,0.00019647,2]
[360174070,1746592245285,-234.61795919,0.00019647,2]
[360174071,1746592245294,-450.0,0.00019647,2]
[360174072,1746592245304,-450.0,0.00019647,2]
[360174073,1746592245313,-450.0,0.00019647,2]
[360174074,1746592245324,-450.0,0.00019647,2]
[360174075,1746592245334,-1185.4,0.00019647,2]
[360174076,1746592245343,-230.583377,0.00019647,2]
[360174078,1746592245353,-1199.07,0.00019647,2]
[360174079,1746592245362,-361.73787043,0.00019647,2]
[360174080,1746592245372,-518.543839,0.00019647,2]
[360174081,1746592245382,-170.0966731,0.00019647,2]
[360174082,1746592245392,-500.0,0.00019647,2]
[360174083,1746592245401,-500.0,0.00019647,2]
[360174084,1746592245410,-500.0,0.00019647,2]
[360174085,1746592245419,-450.0,0.00019647,2]
[360174086,1746592245429,-643.03318353,0.00019647,2]
[360174087,1746592245438,-450.0,0.00019647,2]
[360174088,1746592245448,-290.42016562,0.00019647,2]
[360174089,1746592245457,-450.0,0.00019647,2]
[360174090,1746592245466,-193.16,0.00019647,2]
[360174091,1746592245475,-402.07681913,0.00019647,2]
[360174092,1746592245484,-445387.03873368,0.00019648,2]
[360174093,1746592245493,-151.0,0.00019648,2]
[360174094,1746592245503,-151.0,0.00019648,2]
[360174095,1746592245512,-169.174084,0.00019648,2]
[360174096,1746592245521,-169.174084,0.00019648,2]
[360174097,1746592245530,-151.0,0.00019648,2]
[360174098,1746592245539,-151.0,0.00019648,2]
[360174099,1746592245549,-151.0,0.00019648,2]
[360174100,1746592245558,-268.652629,0.00019648,2]
[360174101,1746592245567,-152.281143,0.00019648,2]
[360174102,1746592245576,-151.0,0.00019648,2]
[360174103,1746592245586,-151.0,0.00019648,2]
[360174104,1746592245595,-151.0,0.00019648,2]
[360174105,1746592245604,-151.0,0.00019648,2]
[360174106,1746592245614,-1398.273243,0.00019648,2]
[360174107,1746592245624,-151.0,0.00019648,2]
[360174108,1746592245633,-1398.273243,0.00019648,2]
[360174109,1746592245642,-151.0,0.00019648,2]
[360174110,1746592245652,-151.0,0.00019648,2]
[360174111,1746592245662,-151.0,0.00019648,2]
[360174112,1746592245671,-160.97987,0.00019648,2]
[360174113,1746592245680,-151.0,0.00019648,2]
[360174114,1746592245689,-151.0,0.00019648,2]
[360174115,1746592245700,-151.0,0.00019648,2]
[360174116,1746592245709,-151.0,0.00019648,2]
[360174117,1746592245718,-156.376908,0.00019648,2]
[360174118,1746592245727,-151.0,0.00019648,2]
[360174119,1746592245738,-151.0,0.00019648,2]
[360174120,1746592245748,-151.0,0.00019648,2]
[360174121,1746592245757,-151.0,0.00019648,2]
[360174122,1746592245766,-157.496219,0.00019648,2]
[360174123,1746592245775,-151.0,0.00019648,2]
[360174124,1746592245785,-159.239698,0.00019648,2]
[360174125,1746592245798,-847.4020943,0.00019648,2]
[360174126,1746592245807,-9058.0918338,0.00019648,2]
[360174127,1746592245816,-254.743874,0.00019648,2]
[360174128,1746592245825,-254.743874,0.00019648,2]
[360174129,1746592245834,-151.0,0.00019648,2]
[360174130,1746592245844,-151.0,0.00019648,2]
[360174131,1746592245853,-254.743874,0.00019648,2]
[360174132,1746592245863,-254.743874,0.00019648,2]
[360174133,1746592245873,-151.0,0.00019648,2]
[360174134,1746592245882,-151.0,0.00019648,2]
[360174135,1746592245891,-151.0,0.00019648,2]
[360174136,1746592245900,-284.847818,0.00019648,2]
[360174137,1746592245909,-284.847818,0.00019648,2]
[360174138,1746592245918,-284.847818,0.00019648,2]
[360174139,1746592245927,-284.847818,0.00019648,2]
[360174140,1746592245936,-151.0,0.00019648,2]
[360174141,1746592245946,-151.0,0.00019648,2]
[360174142,1746592245955,-151.0,0.00019648,2]
[360174143,1746592245965,-151.0,0.00019648,2]
[360174144,1746592245974,-151.0,0.00019648,2]
[360174145,1746592245983,-2143.8617305,0.00019648,2]
[360174146,1746592245992,-174.237596,0.00019648,2]
[360174147,1746592246001,-245.69348,0.00019648,2]
[360174148,1746592246010,-174.237596,0.00019648,2]
[360174149,1746592246019,-245.69348,0.00019648,2]
[360174150,1746592246028,-2843.5452419,0.00019648,2]
[360174151,1746592246037,-287.76209,0.00019648,2]
[360174152,1746592246046,-287.76209,0.00019648,2]
[360174153,1746592246056,-151.0,0.00019648,2]
[360174154,1746592246066,-67573.3319999,0.00019648,2]
[360174155,1746592246076,-163.99255,0.00019648,2]
[360174156,1746592246086,-151.0,0.00019648,2]
[360174157,1746592246096,-151.936966,0.00019648,2]
[360174158,1746592246106,-186.640472,0.00019648,2]
[360174159,1746592246115,-186.640472,0.00019648,2]
[360174160,1746592246124,-151.0,0.00019648,2]
[360174161,1746592246182,-151.0,0.00019648,2]
[360174162,1746592246192,-64198.5833026,0.00019648,2]
[360174163,1746592246200,-151.0,0.00019648,2]
[360174164,1746592246210,-163.287421,0.00019648,2]
[360174165,1746592246219,-163.287421,0.00019648,2]
[360174166,1746592246229,-163.287421,0.00019648,2]
[360174167,1746592246238,-163.287421,0.00019648,2]
[360174168,1746592246247,-15145.72630537,0.0001965,2]
[360174169,1746592246256,-450.0,0.00019651,2]
[360174170,1746592246265,-450.0,0.00019652,2]
[360174171,1746592246274,-450.0,0.00019652,2]
[360174172,1746592246283,-1106.94,0.00019652,2]
[360174173,1746592246292,-1106.94,0.00019652,2]
[360174174,1746592246303,-1806.27,0.00019652,2]
[360174175,1746592246312,-1806.27,0.00019652,2]
[360174176,1746592246322,-450.0,0.00019652,2]
[360174177,1746592246331,-450.0,0.00019652,2]
[360174178,1746592246339,-450.0,0.00019652,2]
[360174179,1746592246349,-450.0,0.00019652,2]
[360174180,1746592246358,-908.99,0.00019652,2]
[360174181,1746592246368,-908.99,0.00019652,2]
[360174182,1746592246377,-562.34,0.00019652,2]
[360174183,1746592246386,-562.34,0.00019652,2]
[360174184,1746592246396,-450.0,0.00019652,2]
[360174185,1746592246406,-450.0,0.00019652,2]
[360174186,1746592246415,-450.0,0.00019652,2]
[360174187,1746592246424,-450.0,0.00019652,2]
[360174188,1746592246434,-450.0,0.00019652,2]
[360174189,1746592246443,-450.0,0.00019652,2]
[360174190,1746592246452,-450.0,0.00019652,2]
[360174191,1746592246462,-450.0,0.00019652,2]
[360174192,1746592246471,-450.0,0.00019652,2]
[360174193,1746592246480,-450.0,0.00019652,2]
[360174194,1746592246489,-450.0,0.00019652,2]
[360174195,1746592246499,-450.0,0.00019652,2]
[360174196,1746592246508,-450.0,0.00019652,2]
[360174197,1746592246517,-206.08472541,0.00019652,2]
[360174198,1746592246526,-501.73,0.00019652,2]
[360174199,1746592246535,-501.73,0.00019652,2]
[360174200,1746592246545,-501.73,0.00019652,2]
[360174201,1746592246554,-1021.11,0.00019652,2]
[360174202,1746592246564,-1021.11,0.00019652,2]
[360174203,1746592246573,-983.38,0.00019652,2]
[360174204,1746592246582,-983.38,0.00019652,2]
[360174205,1746592246591,-258.23,0.00019652,2]
[360174206,1746592246600,-450.0,0.00019652,2]
[360174207,1746592246609,-450.0,0.00019652,2]
[360174208,1746592246619,-450.0,0.00019652,2]
[360174209,1746592246628,-450.0,0.00019652,2]
[360174210,1746592246637,-450.0,0.00019652,2]
[360174211,1746592246646,-450.0,0.00019652,2]
[360174212,1746592246655,-450.0,0.00019652,2]
[360174213,1746592246664,-287.76209,0.00019652,2]
[360174214,1746592246673,-287.76209,0.00019652,2]
[360174215,1746592246682,-1112.43,0.00019652,2]
[360174216,1746592246691,-1112.43,0.00019652,2]
[360174217,1746592246700,-459.01,0.00019652,2]
[360174218,1746592246709,-1112.43,0.00019652,2]
[360174219,1746592246718,-459.01,0.00019652,2]
[360174220,1746592246729,-474.41,0.00019652,2]
[360174221,1746592246737,-474.41,0.00019652,2]
[360174222,1746592246746,-450.0,0.00019652,2]
[360174223,1746592246756,-450.0,0.00019652,2]
[360174224,1746592246765,-450.0,0.00019652,2]
[360174225,1746592246774,-450.0,0.00019652,2]
[360174226,1746592246784,-450.0,0.00019652,2]
[360174227,1746592246797,-247.3893519,0.00019652,2]
[360174228,1746592246806,-450.0,0.00019652,2]
[360174229,1746592246815,-450.0,0.00019652,2]
[360174230,1746592246824,-949.12,0.00019652,2]
[360174231,1746592246834,-949.12,0.00019652,2]
[360174232,1746592246844,-367.62102949,0.00019652,2]
[360174233,1746592247190,-581.49897051,0.00019652,2]
[360174234,1746592247200,-540.39,0.00019652,2]
[360174235,1746592247210,-540.39,0.00019652,2]
[360174236,1746592247219,-173.7907078,0.00019652,2]
[360174237,1746592247251,-276.2092922,0.00019652,2]
[360174238,1746592247260,-450.0,0.00019652,2]
[360174239,1746592247269,-450.0,0.00019652,2]
[360174240,1746592247280,-450.0,0.00019652,2]
[360174241,1746592247290,-450.0,0.00019652,2]
[360174242,1746592247299,-450.0,0.00019652,2]
[360174243,1746592247309,-450.0,0.00019652,2]
[360174244,1746592247319,-450.0,0.00019652,2]
[360174245,1746592247328,-151.0,0.00019652,2]
[360174246,1746592247338,-450.0,0.00019652,2]
[360174247,1746592247347,-450.0,0.00019652,2]
[360174248,1746592247357,-954.4467849,0.00019652,2]
[360174249,1746592247818,-185.81760943,0.00019543,2]
[360174250,1746592247827,-197.48403082,0.0001956,2]
[360174251,1746592247838,-649.83334176,0.0001956,2]
[360174252,1746592247852,-305.57479219,0.0001956,2]
[360174253,1746592248122,-1689.20495918,0.0001956,2]
[360174254,1746592248134,-309.46828284,0.0001956,2]
[360174255,1746592249889,1677.0,0.000194,2]
[360174256,1746592278144,498.56,0.00018657,2]
[360174257,1746592329552,150.0,0.0003,30]
[360174258,1746592341254,477.0,0.0003,30]
[360174260,1746592537530,1852.42,0.00018644,2]
[360174261,1746592570776,500.0,0.0003,30]
[360174262,1746592626262,1000.0,0.00018644,2]
[360174263,1746592635480,437.0,0.0003,30]
[360174264,1746593000352,439.0,0.0003,30]
[360174265,1746593164452,166.76,0.00019193,2]
[360174266,1746593204243,154.28,0.00019178,2]
[360174267,1746593230395,150.0,0.0003,30]
[360174268,1746593269278,406.19,0.00018632,2]
[360174269,1746593300192,1055.0,0.0003,30]
[360174272,1746593302403,421.0,0.0003,30]
[360174273,1746593376265,502.84,0.00016707,2]
[360174274,1746593376495,502.84,0.00018971,2]
[360174275,1746593432379,-943.81,0.00019532,2]
[360174276,1746593432400,-256.19,0.00019532,2]
[360174277,1746593432409,-300.0,0.00019532,2]
[360174278,1746593432419,-4212.85138389,0.00019533,2]
[360174290,1746593440419,-1518.87866099,0.00019533,2]
[360174291,1746593440428,-185.81760943,0.00019533,2]
[360174292,1746593440438,-151.0,0.00019539,2]
[360174293,1746593440447,-3741.4305,0.00019539,2]
[360174294,1746593440457,-249.171,0.00019543,2]
[360174295,1746593440466,-4178.57780392,0.00019545,2]
[360174296,1746593440475,-290.23878078,0.00019561,2]
[360174297,1746593440484,-5731.73004482,0.00019574,2]
[360174298,1746593440493,-207.4,0.00019574,2]
[360174299,1746593440503,-4178.5778039,0.00019584,2]
[360174300,1746593440512,-29999.99,0.00019586,2]
[360174301,1746593440522,-29999.99,0.00019586,2]
[360174302,1746593440531,-2059.92,0.00019586,2]
[360174303,1746593440540,-1677.0,0.000196,2]
[360174304,1746593440550,-33348.24730091,0.000196,2]
[360174305,1746593440559,-476.22831013,0.00019613,2]
[360174306,1746593440568,-185.50252633,0.00019613,2]
[360174307,1746593440578,-5731.73004482,0.00019614,2]
[360174308,1746593440587,-230.23,0.00019622,2]
[360174309,1746593440596,-4178.5778039,0.00019624,2]
[360174310,1746593440606,-450.0,0.00019631,2]
[360174311,1746593440615,-450.0,0.00019631,2]
[360174312,1746593440624,-450.0,0.00019631,2]
[360174313,1746593440633,-518.3666763,0.00019631,2]
[360174314,1746593440643,-450.0,0.00019631,2]
[360174315,1746593440652,-450.0,0.00019631,2]
[360174316,1746593440661,-450.0,0.00019631,2]
[360174317,1746593440671,-450.0,0.00019631,2]
[360174318,1746593440680,-450.0,0.00019631,2]
[360174319,1746593440689,-450.0,0.00019631,2]
[360174320,1746593440699,-493.51,0.00019631,2]
[360174321,1746593440710,-450.0,0.00019631,2]
[360174322,1746593440720,-450.0,0.00019631,2]
[360174323,1746593440729,-450.0,0.00019631,2]
[360174324,1746593440738,-450.0,0.00019631,2]
[360174325,1746593440747,-470.0,0.00019631,2]
[360174326,1746593440758,-450.0,0.00019631,2]
[360174327,1746593440767,-1187.61,0.00019631,2]
[360174328,1746593440776,-450.0,0.00019631,2]
[360174329,1746593440787,-450.0,0.00019631,2]
[360174330,1746593440797,-953.92,0.00019631,2]
[360174331,1746593440806,-393.54651076,0.00019631,2]
[360174332,1746593440815,-450.0,0.00019631,2]
[360174333,1746593440824,-216.45762449,0.00019631,2]
[360174334,1746593440833,-450.0,0.00019631,2]
[360174335,1746593440842,-450.0,0.00019631,2]
[360174336,1746593440851,-450.0,0.00019631,2]
[360174337,1746593440860,-450.0,0.00019631,2]
[360174338,1746593440870,-501.80697938,0.00019631,2]
[360174339,1746593440879,-450.0,0.00019631,2]
[360174340,1746593440889,-490.0,0.00019631,2]
[360174341,1746593440898,-450.0,0.00019631,2]
[360174342,1746593440907,-450.87936178,0.00019631,2]
[360174343,1746593440916,-450.0,0.00019631,2]
[360174344,1746593440925,-450.0,0.00019631,2]
[360174345,1746593440934,-450.0,0.00019631,2]
[360174346,1746593440943,-584.39,0.00019631,2]
[360174347,1746593440952,-470.0,0.00019631,2]
[360174348,1746593440961,-450.0,0.00019631,2]
[360174349,1746593440971,-450.0,0.00019631,2]
[360174350,1746593440982,-450.0,0.00019631,2]
[360174351,1746593440991,-262.16,0.00019631,2]
[360174352,1746593441001,-1280.4,0.00019631,2]
[360174353,1746593441010,-345.695893,0.00019631,2]
[360174354,1746593441019,-450.0,0.00019631,2]
[360174355,1746593441028,-450.0,0.00019631,2]
[360174356,1746593441037,-153.16083995,0.00019631,2]
[360174357,1746593441046,-151.0,0.00019631,2]
[360174358,1746593441055,-151.0,0.00019631,2]
[360174359,1746593441064,-151.0,0.00019631,2]
[360174360,1746593441073,-668.65185757,0.00019631,2]
[360174361,1746593441082,-159264.71839968,0.00019631,2]
[360174362,1746593441091,-450.0,0.00019641,2]
[360174363,1746593441100,-201.93991695,0.00019641,2]
[360174364,1746593441109,-450.0,0.00019641,2]
[360174365,1746593441119,-450.0,0.00019641,2]
[360174366,1746593441128,-450.0,0.00019641,2]
[360174367,1746593441137,-450.0,0.00019641,2]
[360174368,1746593441146,-450.0,0.00019641,2]
[360174369,1746593441155,-450.0,0.00019641,2]
[360174370,1746593441164,-450.0,0.00019641,2]
[360174371,1746593441173,-250.0,0.00019641,2]
[360174372,1746593441182,-450.0,0.00019641,2]
[360174373,1746593441191,-450.0,0.00019641,2]
[360174374,1746593441200,-450.0,0.00019641,2]
[360174375,1746593441209,-450.0,0.00019641,2]
[360174376,1746593441218,-450.0,0.00019641,2]
[360174377,1746593441227,-525.44841606,0.00019641,2]
[360174378,1746593441236,-450.0,0.00019641,2]
[360174379,1746593441246,-450.0,0.00019641,2]
[360174380,1746593441255,-490.0,0.00019641,2]
[360174381,1746593441264,-450.0,0.00019641,2]
[360174382,1746593441273,-450.0,0.00019641,2]
[360174383,1746593441282,-528.55,0.00019641,2]
[360174384,1746593441291,-450.0,0.00019641,2]
[360174385,1746593441300,-450.0,0.00019641,2]
[360174386,1746593441309,-450.0,0.00019641,2]
[360174387,1746593441318,-450.0,0.00019641,2]
[360174388,1746593441327,-450.0,0.00019641,2]
[360174389,1746593441335,-467.35199427,0.00019641,2]
[360174390,1746593441344,-180.54758061,0.00019641,2]
[360174391,1746593441353,-450.0,0.00019641,2]
[360174392,1746593441362,-450.0,0.00019641,2]
[360174393,1746593441371,-450.0,0.00019641,2]
[360174394,1746593441381,-522.9463058,0.00019641,2]
[360174395,1746593441390,-450.0,0.00019641,2]
[360174396,1746593441399,-450.0,0.00019641,2]
[360174397,1746593441408,-450.0,0.00019641,2]
[360174398,1746593441417,-450.0,0.00019641,2]
[360174399,1746593441426,-450.0,0.00019641,2]
[360174400,1746593441436,-450.0,0.00019641,2]
[360174401,1746593441445,-450.0,0.00019641,2]
[360174402,1746593441454,-514.46973085,0.00019641,2]
[360174403,1746593441463,-190.62917693,0.00019641,2]
[360174404,1746593441472,-452.03815223,0.00019641,2]
[360174405,1746593441481,-450.0,0.00019641,2]
[360174406,1746593441490,-450.0,0.00019641,2]
[360174407,1746593441499,-534.8834707,0.00019641,2]
[360174408,1746593441508,-450.0,0.00019641,2]
[360174409,1746593441518,-450.0,0.00019641,2]
[360174410,1746593441527,-391.98047364,0.00019641,2]
[360174411,1746593441536,-300.71898,0.00019641,2]
[360174412,1746593441545,-450.0,0.00019641,2]
[360174413,1746593441554,-455.56392401,0.00019641,2]
[360174414,1746593441563,-450.0,0.00019642,2]
[360174415,1746593441573,-460.0,0.00019642,2]
[360174416,1746593441582,-492.01723161,0.00019642,2]
[360174417,1746593441591,-520.0,0.00019642,2]
[360174418,1746593441600,-490.0,0.00019642,2]
[360174419,1746593441609,-465.07820557,0.00019642,2]
[360174420,1746593441618,-450.0,0.00019642,2]
[360174421,1746593441627,-450.0,0.00019642,2]
[360174422,1746593441636,-450.0,0.00019642,2]
[360174423,1746593441645,-534.88429947,0.00019642,2]
[360174424,1746593441654,-450.0,0.00019642,2]
[360174425,1746593441664,-450.0,0.00019642,2]
[360174426,1746593441672,-450.0,0.00019642,2]
[360174427,1746593441681,-260.09051039,0.00019642,2]
[360174428,1746593441690,-466.29695875,0.00019642,2]
[360174429,1746593441699,-450.0,0.00019642,2]
[360174430,1746593441713,-450.0,0.00019642,2]
[360174431,1746593441722,-450.0,0.00019642,2]
[360174432,1746593441731,-450.0,0.00019642,2]
[360174433,1746593441740,-450.0,0.00019642,2]
[360174434,1746593441749,-450.0,0.00019642,2]
[360174435,1746593441759,-450.0,0.00019642,2]
[360174436,1746593441767,-520.0,0.00019642,2]
[360174437,1746593441776,-450.0,0.00019642,2]
[360174438,1746593441786,-450.0,0.00019642,2]
[360174439,1746593441796,-450.0,0.00019642,2]
[360174440,1746593441806,-450.0,0.00019642,2]
[360174441,1746593441816,-450.0,0.00019642,2]
[360174442,1746593441825,-529.0949857,0.00019642,2]
[360174443,1746593441834,-514.20490005,0.00019642,2]
[360174444,1746593441844,-450.0,0.00019642,2]
[360174445,1746593441853,-450.0,0.00019642,2]
[360174446,1746593441862,-450.0,0.00019642,2]
[360174447,1746593441871,-450.0,0.00019642,2]
[360174448,1746593441880,-450.0,0.00019642,2]
[360174449,1746593441890,-450.0,0.00019642,2]
[360174450,1746593441899,-243.84929202,0.00019642,2]
[360174451,1746593441908,-450.0,0.00019642,2]
[360174452,1746593441917,-450.0,0.00019642,2]
[360174453,1746593441926,-450.0,0.00019642,2]
[360174454,1746593441935,-1800.94,0.00019642,2]
[360174455,1746593441945,-450.0,0.00019642,2]
[360174456,1746593441954,-450.0,0.00019642,2]
[360174457,1746593441964,-495.05021901,0.00019642,2]
[360174458,1746593441973,-411.29369786,0.00019642,2]
[360174459,1746593441982,-450.0,0.00019642,2]
[360174460,1746593441991,-450.0,0.00019642,2]
[360174461,1746593442000,-450.0,0.00019642,2]
[360174462,1746593442009,-373.51955527,0.00019642,2]
[360174463,1746593442019,-275.93993691,0.00019642,2]
[360174464,1746593442028,-450.0,0.00019642,2]
[360174465,1746593442037,-478.13868149,0.00019642,2]
[360174466,1746593442046,-470.0,0.00019642,2]
[360174467,1746593442055,-450.0,0.00019642,2]
[360174468,1746593442064,-818.89,0.00019642,2]
[360174469,1746593442074,-574.37800027,0.00019642,2]
[360174470,1746593442084,-473.92460116,0.00019642,2]
[360174471,1746593442093,-450.0,0.00019642,2]
[360174472,1746593442103,-450.0,0.00019642,2]
[360174473,1746593442112,-450.0,0.00019642,2]
[360174474,1746593442121,-450.0,0.00019642,2]
[360174475,1746593442130,-450.0,0.00019642,2]
[360174476,1746593442139,-450.0,0.00019642,2]
[360174477,1746593442149,-181.02728098,0.00019642,2]
[360174478,1746593442158,-450.0,0.00019642,2]
[360174479,1746593442168,-450.0,0.00019642,2]
[360174480,1746593442177,-450.0,0.00019642,2]
[360174481,1746593442187,-470.0,0.00019642,2]
[360174482,1746593442196,-450.0,0.00019642,2]
[360174483,1746593442206,-470.0,0.00019642,2]
[360174484,1746593442215,-450.0,0.00019642,2]
[360174485,1746593442224,-450.0,0.00019642,2]
[360174486,1746593442233,-450.0,0.00019642,2]
[360174487,1746593442243,-450.0,0.00019642,2]
[360174488,1746593442252,-450.0,0.00019642,2]
[360174489,1746593442261,-450.0,0.00019642,2]
[360174490,1746593442270,-450.0,0.00019642,2]
[360174491,1746593442279,-450.0,0.00019642,2]
[360174492,1746593442289,-450.0,0.00019642,2]
[360174493,1746593442298,-450.0,0.00019642,2]
[360174494,1746593442307,-450.0,0.00019642,2]
[360174495,1746593442316,-450.0,0.00019642,2]
[360174496,1746593442325,-450.0,0.00019642,2]
[360174497,1746593442334,-529.84631192,0.00019642,2]
[360174498,1746593442344,-450.0,0.00019642,2]
[360174499,1746593442353,-450.0,0.00019642,2]
[360174500,1746593442362,-450.0,0.00019642,2]
[360174501,1746593442371,-450.0,0.00019642,2]
[360174502,1746593442380,-450.0,0.00019642,2]
[360174503,1746593442389,-450.0,0.00019642,2]
[360174504,1746593442398,-500.0,0.00019642,2]
[360174505,1746593442407,-450.0,0.00019642,2]
[360174506,1746593442416,-450.0,0.00019642,2]
[360174507,1746593442425,-450.0,0.00019642,2]
[360174508,1746593442434,-459.88945369,0.00019642,2]
[360174509,1746593442443,-450.0,0.00019642,2]
[360174510,1746593442453,-490.0,0.00019642,2]
[360174511,1746593442462,-488.67146372,0.00019642,2]
[360174512,1746593442472,-450.0,0.00019642,2]
[360174513,1746593442481,-450.0,0.00019642,2]
[360174514,1746593442491,-571.43509538,0.00019642,2]
[360174515,1746593442500,-450.0,0.00019642,2]
[360174516,1746593442509,-450.0,0.00019642,2]
[360174517,1746593442519,-450.0,0.00019642,2]
[360174518,1746593442528,-534.8235494,0.00019642,2]
[360174519,1746593442538,-459.87938233,0.00019642,2]
[360174520,1746593442548,-464.86311483,0.00019642,2]
[360174521,1746593442557,-450.0,0.00019642,2]
[360174522,1746593442566,-450.0,0.00019642,2]
[360174523,1746593442575,-407.80466891,0.00019642,2]
[360174524,1746593442585,-450.0,0.00019642,2]
[360174525,1746593442594,-450.0,0.00019642,2]
[360174526,1746593442603,-450.0,0.00019642,2]
[360174527,1746593442613,-450.0,0.00019642,2]
[360174528,1746593442623,-450.0,0.00019642,2]
[360174529,1746593442632,-418.05230118,0.00019642,2]
[360174530,1746593442642,-450.0,0.00019642,2]
[360174531,1746593442651,-450.0,0.00019642,2]
[360174532,1746593442660,-450.0,0.00019642,2]
[360174533,1746593442670,-450.0,0.00019642,2]
[360174534,1746593442680,-450.0,0.00019642,2]
[360174535,1746593442689,-450.0,0.00019642,2]
[360174536,1746593442698,-450.0,0.00019642,2]
[360174537,1746593442713,-450.0,0.00019642,2]
[360174538,1746593442728,-217.08173909,0.00019642,2]
[360174539,1746593442737,-162.85260813,0.00019642,2]
[360174540,1746593442746,-785.31,0.00019642,2]
[360174541,1746593442757,-450.0,0.00019642,2]
[360174542,1746593442766,-450.0,0.00019642,2]
[360174543,1746593442775,-450.0,0.00019642,2]
[360174544,1746593442784,-456.18371563,0.00019642,2]
[360174545,1746593442794,-450.0,0.00019642,2]
[360174546,1746593442803,-450.0,0.00019642,2]
[360174547,1746593442813,-450.0,0.00019642,2]
[360174548,1746593442822,-450.0,0.00019642,2]
[360174549,1746593442831,-450.0,0.00019642,2]
[360174550,1746593442841,-450.0,0.00019642,2]
[360174551,1746593442851,-450.0,0.00019642,2]
[360174552,1746593442860,-450.0,0.00019642,2]
[360174553,1746593442869,-540.34,0.00019642,2]
[360174554,1746593442879,-490.0,0.00019642,2]
[360174555,1746593442889,-450.0,0.00019642,2]